[Event "Titled Tuesday Blitz June 8 2021"]
[White "Abdusattorov, Nodirbek"]
[Black "Orozbaev, Eldiar"]
[WhiteFideId "14204118"]
[BlackFideId "13802240"]
[WhiteElo "2662"]
[BlackElo "1914"]
[Result "1-0"]
[Round "01"]
[TimeControl "180+1"]
[Date "2021.06.08"]
[WhiteClock "0:00:51"]
[BlackClock "0:00:20"]

1. d4 {[%clk 0:03:00]}  Nf6 {[%clk 0:02:46]} 2. c4 {[%clk 0:03:00]}  e6 {[%clk 0:02:45]} 3. Nf3 {[%clk 0:02:59]}  d5 {[%clk 0:02:46]} 4. Nc3 {[%clk 0:02:59]}  Be7 {[%clk 0:02:45]} 5. Bg5 {[%clk 0:02:57]}  c6 {[%clk 0:02:45]} 6. Qc2 {[%clk 0:02:56]}  O-O {[%clk 0:02:45]} 7. e3 {[%clk 0:02:50]}  a6 {[%clk 0:02:44]} 8. O-O-O {[%clk 0:02:49]}  dxc4 {[%clk 0:02:44]} 9. Bxc4 {[%clk 0:02:50]}  b5 {[%clk 0:02:44]} 10. Bb3 {[%clk 0:02:50]}  a5 {[%clk 0:02:43]} 11. Qd3 {[%clk 0:02:46]}  a4 {[%clk 0:02:41]} 12. Bc2 {[%clk 0:02:46]}  g6 {[%clk 0:02:38]} 13. e4 {[%clk 0:02:45]}  b4 {[%clk 0:02:36]} 14. Nxa4 {[%clk 0:02:44]}  Ba6 {[%clk 0:02:35]} 15. Qd2 {[%clk 0:02:39]}  Bb5 {[%clk 0:02:35]} 16. b3 {[%clk 0:02:37]}  Nbd7 {[%clk 0:02:28]} 17. Ne5 {[%clk 0:02:35]}  Nxe5 {[%clk 0:01:02]} 18. dxe5 {[%clk 0:02:36]}  Ng4 {[%clk 0:01:03]} 19. Qxd8 {[%clk 0:02:28]}  Bxd8 {[%clk 0:01:02]} 20. Bxd8 {[%clk 0:02:24]}  Rfxd8 {[%clk 0:01:03]} 21. f4 {[%clk 0:01:56]}  Bxa4 {[%clk 0:00:51]} 22. bxa4 {[%clk 0:01:23]}  Ne3 {[%clk 0:00:50]} 23. Rxd8+ {[%clk 0:01:20]}  Rxd8 {[%clk 0:00:51]} 24. g3 {[%clk 0:01:16]}  c5 {[%clk 0:00:44]} 25. Re1 {[%clk 0:01:16]}  Nxc2 {[%clk 0:00:29]} 26. Kxc2 {[%clk 0:01:17]}  c4 {[%clk 0:00:30]} 27. Rb1 {[%clk 0:01:12]}  Rb8 {[%clk 0:00:25]} 28. a3 {[%clk 0:00:58]}  b3+ {[%clk 0:00:19]} 29. Kc3 {[%clk 0:00:57]}  Ra8 {[%clk 0:00:19]} 30. Kxc4 {[%clk 0:00:57]}  Rxa4+ {[%clk 0:00:19]} 31. Kxb3 {[%clk 0:00:58]}  Rxe4 {[%clk 0:00:19]} 32. Rb2 {[%clk 0:00:53]}  Re3+ {[%clk 0:00:18]} 33. Kb4 {[%clk 0:00:53]}  h5 {[%clk 0:00:18]} 34. a4 {[%clk 0:00:53]}  h4 {[%clk 0:00:18]} 35. a5 {[%clk 0:00:52]}  hxg3 {[%clk 0:00:14]} 36. hxg3 {[%clk 0:00:52]}  Rxg3 {[%clk 0:00:15]} 37. a6 {[%clk 0:00:53]}  Rg1 {[%clk 0:00:16]} 38. Ra2 {[%clk 0:00:50]}  Rb1+ {[%clk 0:00:16]} 39. Kc5 {[%clk 0:00:49]}  Rb8 {[%clk 0:00:17]} 40. a7 {[%clk 0:00:49]}  Ra8 {[%clk 0:00:17]} 41. Kb6 {[%clk 0:00:50]}  g5 {[%clk 0:00:18]} 42. fxg5 {[%clk 0:00:50]}  Kg7 {[%clk 0:00:19]} 43. Kb7 {[%clk 0:00:50]}  Rxa7+ {[%clk 0:00:19]} 44. Kxa7 {[%clk 0:00:51]}  Kg6 {[%clk 0:00:20]} 45. Rf2 {[%clk 0:00:51]} 1-0


[Site "https://www.chess.com"]

[Event "Titled Tuesday Blitz June 8 2021"]
[White "Ahmadzada, Ahmad"]
[Black "Popadic, Dragan"]
[WhiteFideId "13413007"]
[BlackFideId "913650"]
[WhiteElo "2830"]
[BlackElo "2448"]
[Result "1-0"]
[Round "01"]
[TimeControl "180+1"]
[Date "2021.06.08"]
[WhiteClock "0:01:38"]
[BlackClock "0:00:22"]

1. e4 {[%clk 0:03:00]}  c5 {[%clk 0:02:59]} 2. Nf3 {[%clk 0:03:00]}  Nc6 {[%clk 0:02:59]} 3. Nc3 {[%clk 0:03:01]}  e5 {[%clk 0:02:58]} 4. Bc4 {[%clk 0:03:00]}  Be7 {[%clk 0:02:58]} 5. d3 {[%clk 0:03:00]}  Nf6 {[%clk 0:02:58]} 6. Nd2 {[%clk 0:02:59]}  d6 {[%clk 0:02:58]} 7. Nf1 {[%clk 0:02:59]}  O-O {[%clk 0:02:57]} 8. Ne3 {[%clk 0:02:59]}  Be6 {[%clk 0:02:57]} 9. O-O {[%clk 0:02:58]}  a6 {[%clk 0:02:56]} 10. a4 {[%clk 0:02:58]}  Rb8 {[%clk 0:02:47]} 11. Ned5 {[%clk 0:02:57]}  Bxd5 {[%clk 0:02:31]} 12. Nxd5 {[%clk 0:02:56]}  Kh8 {[%clk 0:02:24]} 13. f4 {[%clk 0:02:47]}  exf4 {[%clk 0:02:23]} 14. Bxf4 {[%clk 0:02:45]}  Ne5 {[%clk 0:02:19]} 15. Bxe5 {[%clk 0:02:29]}  dxe5 {[%clk 0:02:19]} 16. Nxf6 {[%clk 0:02:28]}  Bxf6 {[%clk 0:02:18]} 17. a5 {[%clk 0:02:28]}  Qe7 {[%clk 0:01:44]} 18. Qh5 {[%clk 0:02:17]}  g6 {[%clk 0:01:39]} 19. Qh3 {[%clk 0:02:17]}  Bg7 {[%clk 0:01:39]} 20. Rf3 {[%clk 0:02:15]}  f6 {[%clk 0:01:33]} 21. Raf1 {[%clk 0:02:14]}  Qd8 {[%clk 0:01:22]} 22. Rg3 {[%clk 0:02:12]}  g5 {[%clk 0:01:20]} 23. Be6 {[%clk 0:02:00]}  Qe8 {[%clk 0:01:01]} 24. Bf5 {[%clk 0:01:55]}  h6 {[%clk 0:00:58]} 25. Qg4 {[%clk 0:01:47]}  Qf7 {[%clk 0:00:51]} 26. Rh3 {[%clk 0:01:42]}  b6 {[%clk 0:00:36]} 27. axb6 {[%clk 0:01:42]}  Rxb6 {[%clk 0:00:36]} 28. b3 {[%clk 0:01:42]}  a5 {[%clk 0:00:35]} 29. Rh5 {[%clk 0:01:41]}  Ra8 {[%clk 0:00:33]} 30. h4 {[%clk 0:01:40]}  Kg8 {[%clk 0:00:23]} 31. hxg5 {[%clk 0:01:39]}  fxg5 {[%clk 0:00:22]} 32. Bh7+ {[%clk 0:01:38]} 1-0


[Site "https://www.chess.com"]

[Event "Titled Tuesday Blitz June 8 2021"]
[White "Balabayeva, Xeniya"]
[Black "Korobov, Anton"]
[WhiteFideId "13719688"]
[BlackFideId "14105730"]
[WhiteElo "1937"]
[BlackElo "2668"]
[Result "0-1"]
[Round "01"]
[TimeControl "180+1"]
[Date "2021.06.08"]
[WhiteClock "0:00:03"]
[BlackClock "0:00:49"]

1. e4 {[%clk 0:03:00]}  c5 {[%clk 0:02:59]} 2. Nf3 {[%clk 0:03:00]}  Nc6 {[%clk 0:02:59]} 3. Bb5 {[%clk 0:02:59]}  e6 {[%clk 0:02:59]} 4. O-O {[%clk 0:02:58]}  Nge7 {[%clk 0:02:59]} 5. c3 {[%clk 0:02:57]}  a6 {[%clk 0:02:58]} 6. Be2 {[%clk 0:02:50]}  d5 {[%clk 0:02:51]} 7. exd5 {[%clk 0:02:48]}  Nxd5 {[%clk 0:02:52]} 8. d4 {[%clk 0:02:40]}  cxd4 {[%clk 0:02:52]} 9. Nxd4 {[%clk 0:02:30]}  Bd7 {[%clk 0:02:52]} 10. Nxc6 {[%clk 0:02:23]}  Bxc6 {[%clk 0:02:51]} 11. c4 {[%clk 0:01:59]}  Nf6 {[%clk 0:02:51]} 12. Be3 {[%clk 0:01:57]}  Qc7 {[%clk 0:02:51]} 13. Nc3 {[%clk 0:01:54]}  Bd6 {[%clk 0:02:46]} 14. h3 {[%clk 0:01:53]}  O-O {[%clk 0:02:45]} 15. Qc2 {[%clk 0:01:51]}  Bh2+ {[%clk 0:02:27]} 16. Kh1 {[%clk 0:01:49]}  Bf4 {[%clk 0:02:28]} 17. Bxf4 {[%clk 0:01:43]}  Qxf4 {[%clk 0:02:27]} 18. Rad1 {[%clk 0:01:35]}  g6 {[%clk 0:02:16]} 19. Qc1 {[%clk 0:01:29]}  Qf5 {[%clk 0:02:10]} 20. Qe3 {[%clk 0:01:25]}  Rad8 {[%clk 0:02:06]} 21. Bd3 {[%clk 0:01:14]}  Qh5 {[%clk 0:01:59]} 22. Be2 {[%clk 0:01:12]}  Qh4 {[%clk 0:01:55]} 23. Kh2 {[%clk 0:01:06]}  Nd7 {[%clk 0:01:43]} 24. b3 {[%clk 0:00:54]}  Qe7 {[%clk 0:01:37]} 25. Bf3 {[%clk 0:00:48]}  Bxf3 {[%clk 0:01:35]} 26. Qxf3 {[%clk 0:00:47]}  Ne5 {[%clk 0:01:35]} 27. Qe3 {[%clk 0:00:43]}  Nc6 {[%clk 0:01:35]} 28. Ne4 {[%clk 0:00:41]}  e5 {[%clk 0:01:34]} 29. Qc5 {[%clk 0:00:35]}  Qe6 {[%clk 0:01:28]} 30. Rd6 {[%clk 0:00:25]}  Qf5 {[%clk 0:01:26]} 31. f3 {[%clk 0:00:20]}  Rxd6 {[%clk 0:01:21]} 32. Nxd6 {[%clk 0:00:19]}  Qf4+ {[%clk 0:01:21]} 33. Kg1 {[%clk 0:00:18]}  Nd4 {[%clk 0:01:21]} 34. Ne4 {[%clk 0:00:15]}  f5 {[%clk 0:01:14]} 35. Nd6 {[%clk 0:00:11]}  Qe3+ {[%clk 0:01:13]} 36. Kh1 {[%clk 0:00:10]}  Qe2 {[%clk 0:01:02]} 37. Rg1 {[%clk 0:00:10]}  Qf2 {[%clk 0:01:01]} 38. Qd5+ {[%clk 0:00:10]}  Kg7 {[%clk 0:00:59]} 39. Qxe5+ {[%clk 0:00:10]}  Kh6 {[%clk 0:00:59]} 40. Qf4+ {[%clk 0:00:06]}  g5 {[%clk 0:00:57]} 41. Qe5 {[%clk 0:00:06]}  Ne2 {[%clk 0:00:52]} 42. Ra1 {[%clk 0:00:04]}  Nf4 {[%clk 0:00:49]} 43. Qe7 {[%clk 0:00:03]}  Qxg2# {[%clk 0:00:49]} 0-1


[Site "https://www.chess.com"]

[Event "Titled Tuesday Blitz June 8 2021"]
[White "Bethke, Richard"]
[Black "Willow, Jonah B"]
[WhiteFideId "12959243"]
[BlackFideId "438804"]
[WhiteElo "2400"]
[BlackElo "2261"]
[Result "0-1"]
[Round "01"]
[TimeControl "180+1"]
[Date "2021.06.08"]
[WhiteClock "0:00:15"]
[BlackClock "0:01:03"]

1. e4 {[%clk 0:03:00]}  c5 {[%clk 0:02:59]} 2. Nf3 {[%clk 0:03:01]}  Nc6 {[%clk 0:02:59]} 3. d4 {[%clk 0:03:02]}  cxd4 {[%clk 0:02:59]} 4. Nxd4 {[%clk 0:03:03]}  g6 {[%clk 0:03:00]} 5. c4 {[%clk 0:02:59]}  Nf6 {[%clk 0:02:57]} 6. Nc3 {[%clk 0:02:59]}  d6 {[%clk 0:02:57]} 7. f3 {[%clk 0:02:58]}  Nxd4 {[%clk 0:02:55]} 8. Qxd4 {[%clk 0:02:57]}  Bg7 {[%clk 0:02:56]} 9. Be3 {[%clk 0:02:57]}  O-O {[%clk 0:02:55]} 10. Qd2 {[%clk 0:02:54]}  a5 {[%clk 0:02:55]} 11. Na4 {[%clk 0:02:51]}  Nd7 {[%clk 0:02:47]} 12. O-O-O {[%clk 0:02:47]}  Qc7 {[%clk 0:02:39]} 13. Kb1 {[%clk 0:02:46]}  b6 {[%clk 0:02:38]} 14. h4 {[%clk 0:02:43]}  Nc5 {[%clk 0:02:38]} 15. Nxc5 {[%clk 0:02:40]}  bxc5 {[%clk 0:02:38]} 16. Bh6 {[%clk 0:02:36]}  Bd4 {[%clk 0:02:14]} 17. Bxf8 {[%clk 0:02:28]}  Kxf8 {[%clk 0:02:15]} 18. Qh6+ {[%clk 0:02:27]}  Bg7 {[%clk 0:02:15]} 19. Qxh7 {[%clk 0:02:27]}  Rb8 {[%clk 0:02:12]} 20. Rd2 {[%clk 0:01:54]}  Qb6 {[%clk 0:02:08]} 21. e5 {[%clk 0:01:40]}  Bf5+ {[%clk 0:02:04]} 22. Kc1 {[%clk 0:01:32]}  Bxe5 {[%clk 0:02:03]} 23. b3 {[%clk 0:01:05]}  a4 {[%clk 0:01:57]} 24. Qh6+ {[%clk 0:01:05]}  Bg7 {[%clk 0:01:52]} 25. Qe3 {[%clk 0:01:05]}  axb3 {[%clk 0:01:51]} 26. axb3 {[%clk 0:00:56]}  Ra8 {[%clk 0:01:51]} 27. Kd1 {[%clk 0:00:53]}  Bd4 {[%clk 0:01:46]} 28. Qh6+ {[%clk 0:00:43]}  Kg8 {[%clk 0:01:44]} 29. Bd3 {[%clk 0:00:40]}  Ra1+ {[%clk 0:01:21]} 30. Ke2 {[%clk 0:00:40]}  Bxd3+ {[%clk 0:01:15]} 31. Rxd3 {[%clk 0:00:35]}  Rxh1 {[%clk 0:01:16]} 32. Qd2 {[%clk 0:00:21]}  Qa7 {[%clk 0:01:06]} 33. h5 {[%clk 0:00:17]}  Rxh5 {[%clk 0:01:06]} 34. b4 {[%clk 0:00:15]}  Re5+ {[%clk 0:01:04]} 35. Kd1 {[%clk 0:00:14]}  Qa1+ {[%clk 0:01:05]} 36. Kc2 {[%clk 0:00:14]}  Qb2+ {[%clk 0:01:03]} 37. Kd1 {[%clk 0:00:15]}  Qb1+ {[%clk 0:01:03]} 0-1


[Site "https://www.chess.com"]

[Event "Titled Tuesday Blitz June 8 2021"]
[White "Brankovic, Dejan"]
[Black "Costachi, Mihnea"]
[WhiteFideId "921602"]
[BlackFideId "1217518"]
[WhiteElo "2237"]
[BlackElo "2479"]
[Result "0-1"]
[Round "01"]
[TimeControl "180+1"]
[Date "2021.06.08"]
[WhiteClock "0:00:15"]
[BlackClock "0:00:51"]

1. e4 {[%clk 0:03:00]}  e5 {[%clk 0:02:57]} 2. Nf3 {[%clk 0:03:00]}  Nc6 {[%clk 0:02:56]} 3. c3 {[%clk 0:03:01]}  Nf6 {[%clk 0:02:52]} 4. d4 {[%clk 0:03:00]}  exd4 {[%clk 0:02:52]} 5. e5 {[%clk 0:03:00]}  Nd5 {[%clk 0:02:51]} 6. cxd4 {[%clk 0:02:59]}  Bb4+ {[%clk 0:02:51]} 7. Bd2 {[%clk 0:03:00]}  O-O {[%clk 0:02:52]} 8. Bc4 {[%clk 0:02:58]}  Bxd2+ {[%clk 0:02:49]} 9. Nbxd2 {[%clk 0:02:57]}  Nf4 {[%clk 0:02:49]} 10. O-O {[%clk 0:02:56]}  d5 {[%clk 0:02:50]} 11. Bb5 {[%clk 0:02:53]}  Ne7 {[%clk 0:02:43]} 12. h3 {[%clk 0:02:45]}  Neg6 {[%clk 0:02:37]} 13. Re1 {[%clk 0:02:45]}  c6 {[%clk 0:02:35]} 14. Bf1 {[%clk 0:02:44]}  f6 {[%clk 0:02:35]} 15. Nb3 {[%clk 0:02:40]}  fxe5 {[%clk 0:02:34]} 16. Nxe5 {[%clk 0:02:39]}  Nxe5 {[%clk 0:02:34]} 17. Rxe5 {[%clk 0:02:32]}  Ng6 {[%clk 0:02:28]} 18. Re3 {[%clk 0:02:25]}  Qh4 {[%clk 0:02:25]} 19. Qd2 {[%clk 0:02:25]}  b6 {[%clk 0:02:17]} 20. Rae1 {[%clk 0:02:23]}  Bd7 {[%clk 0:02:17]} 21. a4 {[%clk 0:02:14]}  Rf7 {[%clk 0:02:10]} 22. a5 {[%clk 0:02:14]}  Raf8 {[%clk 0:02:10]} 23. R1e2 {[%clk 0:01:33]}  Nf4 {[%clk 0:02:08]} 24. Re1 {[%clk 0:01:31]}  Ng6 {[%clk 0:02:04]} 25. R1e2 {[%clk 0:01:30]}  h6 {[%clk 0:02:03]} 26. axb6 {[%clk 0:01:30]}  axb6 {[%clk 0:02:03]} 27. Rc3 {[%clk 0:01:27]}  Nf4 {[%clk 0:02:01]} 28. Re1 {[%clk 0:01:25]}  Ne6 {[%clk 0:02:00]} 29. g3 {[%clk 0:01:18]}  Qh5 {[%clk 0:01:51]} 30. f4 {[%clk 0:01:11]}  Qg6 {[%clk 0:01:46]} 31. Kh2 {[%clk 0:01:08]}  Nxf4 {[%clk 0:01:38]} 32. gxf4 {[%clk 0:01:07]}  Rxf4 {[%clk 0:01:38]} 33. Bg2 {[%clk 0:00:51]}  Rf2 {[%clk 0:01:38]} 34. Rg3 {[%clk 0:00:52]}  Rxd2 {[%clk 0:01:32]} 35. Rxg6 {[%clk 0:00:51]}  Rxb2 {[%clk 0:01:33]} 36. Re7 {[%clk 0:00:50]}  Rf7 {[%clk 0:01:31]} 37. Rxf7 {[%clk 0:00:48]}  Kxf7 {[%clk 0:01:31]} 38. Rg3 {[%clk 0:00:49]}  Bf5 {[%clk 0:01:24]} 39. Kg1 {[%clk 0:00:47]}  g5 {[%clk 0:01:22]} 40. Rc3 {[%clk 0:00:46]}  Ke7 {[%clk 0:01:15]} 41. Nc1 {[%clk 0:00:38]}  Kd6 {[%clk 0:01:12]} 42. Nd3 {[%clk 0:00:38]}  Rd2 {[%clk 0:01:02]} 43. Ne5 {[%clk 0:00:38]}  c5 {[%clk 0:00:59]} 44. Nf7+ {[%clk 0:00:35]}  Ke6 {[%clk 0:00:58]} 45. Nxh6 {[%clk 0:00:36]}  Rxd4 {[%clk 0:00:58]} 46. Nxf5 {[%clk 0:00:34]}  Kxf5 {[%clk 0:00:58]} 47. Rb3 {[%clk 0:00:34]}  c4 {[%clk 0:00:51]} 48. Rxb6 {[%clk 0:00:34]}  c3 {[%clk 0:00:51]} 49. Rc6 {[%clk 0:00:30]}  Rc4 {[%clk 0:00:51]} 50. Bxd5 {[%clk 0:00:14]}  Rxc6 {[%clk 0:00:50]} 51. Bxc6 {[%clk 0:00:15]}  c2 {[%clk 0:00:51]} 0-1


[Site "https://www.chess.com"]

[Event "Titled Tuesday Blitz June 8 2021"]
[White "Cardoso Cardoso, Jose Gabriel"]
[Black "Kejna, Piotr"]
[WhiteFideId "4430492"]
[BlackFideId "21821704"]
[WhiteElo "2805"]
[BlackElo "2430"]
[Result "1-0"]
[Round "01"]
[TimeControl "180+1"]
[Date "2021.06.08"]
[WhiteClock "0:00:12"]
[BlackClock "0:00:06"]

1. c4 {[%clk 0:03:00]}  e5 {[%clk 0:02:59]} 2. Nc3 {[%clk 0:03:00]}  Nf6 {[%clk 0:03:00]} 3. Nf3 {[%clk 0:03:00]}  d6 {[%clk 0:02:59]} 4. d4 {[%clk 0:03:00]}  exd4 {[%clk 0:02:59]} 5. Nxd4 {[%clk 0:03:01]}  g6 {[%clk 0:02:59]} 6. e4 {[%clk 0:03:01]}  Bg7 {[%clk 0:02:59]} 7. Be2 {[%clk 0:03:02]}  O-O {[%clk 0:03:00]} 8. Bg5 {[%clk 0:03:02]}  Re8 {[%clk 0:02:55]} 9. f3 {[%clk 0:02:55]}  Be6 {[%clk 0:02:40]} 10. O-O {[%clk 0:02:53]}  Nbd7 {[%clk 0:02:40]} 11. Qd2 {[%clk 0:02:51]}  a5 {[%clk 0:02:36]} 12. Rad1 {[%clk 0:02:50]}  a4 {[%clk 0:02:31]} 13. f4 {[%clk 0:02:36]}  Nb6 {[%clk 0:01:51]} 14. e5 {[%clk 0:02:25]}  dxe5 {[%clk 0:01:46]} 15. fxe5 {[%clk 0:02:26]}  Bxc4 {[%clk 0:01:44]} 16. exf6 {[%clk 0:02:21]}  Bf8 {[%clk 0:01:40]} 17. Kh1 {[%clk 0:02:15]}  Bc5 {[%clk 0:01:38]} 18. Rf4 {[%clk 0:01:55]}  Bxe2 {[%clk 0:01:20]} 19. Ncxe2 {[%clk 0:01:50]}  Qd5 {[%clk 0:01:10]} 20. Nf3 {[%clk 0:01:19]}  Qxd2 {[%clk 0:01:02]} 21. Rxd2 {[%clk 0:01:20]}  Be3 {[%clk 0:01:01]} 22. Rc2 {[%clk 0:01:21]}  Bxf4 {[%clk 0:01:01]} 23. Nxf4 {[%clk 0:01:22]}  Rad8 {[%clk 0:00:55]} 24. h4 {[%clk 0:01:20]}  c6 {[%clk 0:00:53]} 25. Kh2 {[%clk 0:01:19]}  Rd6 {[%clk 0:00:49]} 26. h5 {[%clk 0:01:16]}  h6 {[%clk 0:00:47]} 27. Bxh6 {[%clk 0:01:12]}  Rxf6 {[%clk 0:00:47]} 28. hxg6 {[%clk 0:01:09]}  fxg6 {[%clk 0:00:47]} 29. Bg5 {[%clk 0:01:06]}  Rf5 {[%clk 0:00:45]} 30. g4 {[%clk 0:01:07]}  Rf7 {[%clk 0:00:38]} 31. Kg3 {[%clk 0:00:58]}  Nd5 {[%clk 0:00:35]} 32. Nxd5 {[%clk 0:00:57]}  cxd5 {[%clk 0:00:36]} 33. Nh4 {[%clk 0:00:51]}  Kg7 {[%clk 0:00:34]} 34. Rd2 {[%clk 0:00:51]}  Re1 {[%clk 0:00:31]} 35. Nf3 {[%clk 0:00:41]}  Rf1 {[%clk 0:00:31]} 36. Rd3 {[%clk 0:00:38]}  Rb1 {[%clk 0:00:31]} 37. Bd2 {[%clk 0:00:36]}  Kg8 {[%clk 0:00:28]} 38. Bc3 {[%clk 0:00:36]}  Rf1 {[%clk 0:00:26]} 39. a3 {[%clk 0:00:35]}  b5 {[%clk 0:00:26]} 40. Ng5 {[%clk 0:00:33]}  Rd7 {[%clk 0:00:23]} 41. Nh3 {[%clk 0:00:27]}  Rff7 {[%clk 0:00:19]} 42. Nf4 {[%clk 0:00:26]}  g5 {[%clk 0:00:19]} 43. Nxd5 {[%clk 0:00:25]}  Rb7 {[%clk 0:00:16]} 44. Ne3 {[%clk 0:00:25]}  Rbd7 {[%clk 0:00:15]} 45. Rxd7 {[%clk 0:00:23]}  Rxd7 {[%clk 0:00:16]} 46. Kf3 {[%clk 0:00:23]}  Kf7 {[%clk 0:00:16]} 47. Ke4 {[%clk 0:00:23]}  Ke6 {[%clk 0:00:16]} 48. Nf5 {[%clk 0:00:23]}  Rf7 {[%clk 0:00:16]} 49. Nd4+ {[%clk 0:00:24]}  Kd7 {[%clk 0:00:16]} 50. Bd2 {[%clk 0:00:24]}  Rf2 {[%clk 0:00:15]} 51. Kd3 {[%clk 0:00:22]}  Rg2 {[%clk 0:00:15]} 52. Nf3 {[%clk 0:00:21]}  Kc6 {[%clk 0:00:12]} 53. Bc3 {[%clk 0:00:16]}  Kd5 {[%clk 0:00:10]} 54. Nxg5 {[%clk 0:00:16]}  Rxg4 {[%clk 0:00:10]} 55. Nf3 {[%clk 0:00:16]}  Rg3 {[%clk 0:00:10]} 56. Ke3 {[%clk 0:00:17]}  Rh3 {[%clk 0:00:10]} 57. Ke2 {[%clk 0:00:15]}  Kc4 {[%clk 0:00:10]} 58. Nd2+ {[%clk 0:00:15]}  Kd5 {[%clk 0:00:10]} 59. Kd1 {[%clk 0:00:15]}  Rh2 {[%clk 0:00:10]} 60. Kc2 {[%clk 0:00:14]}  Rh3 {[%clk 0:00:10]} 61. Bb4 {[%clk 0:00:14]}  Rh2 {[%clk 0:00:10]} 62. Kd3 {[%clk 0:00:13]}  Rh3+ {[%clk 0:00:10]} 63. Ke2 {[%clk 0:00:13]}  Rh2+ {[%clk 0:00:11]} 64. Ke3 {[%clk 0:00:14]}  Rh3+ {[%clk 0:00:11]} 65. Nf3 {[%clk 0:00:14]}  Rh1 {[%clk 0:00:11]} 66. Bc3 {[%clk 0:00:13]}  Kc4 {[%clk 0:00:10]} 67. Ke4 {[%clk 0:00:11]}  Kb3 {[%clk 0:00:08]} 68. Nd2+ {[%clk 0:00:11]}  Kc2 {[%clk 0:00:08]} 69. Kd4 {[%clk 0:00:11]}  Rh2 {[%clk 0:00:07]} 70. Kc5 {[%clk 0:00:10]}  Rxd2 {[%clk 0:00:06]} 71. Bxd2 {[%clk 0:00:10]}  Kxd2 {[%clk 0:00:05]} 72. Kxb5 {[%clk 0:00:11]}  Kc2 {[%clk 0:00:06]} 73. Kxa4 {[%clk 0:00:11]}  Kxb2 {[%clk 0:00:06]} 74. Kb4 {[%clk 0:00:12]} 1-0


[Site "https://www.chess.com"]

[Event "Titled Tuesday Blitz June 8 2021"]
[White "Dardha, Daniel"]
[Black "Karavaeva, Olga"]
[WhiteFideId "240990"]
[BlackFideId "4124111"]
[WhiteElo "2489"]
[BlackElo "2105"]
[Result "1/2-1/2"]
[Round "01"]
[TimeControl "180+1"]
[Date "2021.06.08"]
[WhiteClock "0:00:01"]
[BlackClock "0:00:55"]

1. d4 {[%clk 0:03:00]}  d5 {[%clk 0:02:59]} 2. c4 {[%clk 0:02:58]}  e6 {[%clk 0:02:59]} 3. Nc3 {[%clk 0:02:55]}  c6 {[%clk 0:02:57]} 4. e3 {[%clk 0:02:53]}  Nf6 {[%clk 0:02:57]} 5. b3 {[%clk 0:02:53]}  Nbd7 {[%clk 0:02:56]} 6. Bb2 {[%clk 0:02:52]}  Bd6 {[%clk 0:02:56]} 7. Bd3 {[%clk 0:02:51]}  O-O {[%clk 0:02:56]} 8. Nge2 {[%clk 0:02:50]}  dxc4 {[%clk 0:02:55]} 9. bxc4 {[%clk 0:02:48]}  e5 {[%clk 0:02:55]} 10. h3 {[%clk 0:02:40]}  exd4 {[%clk 0:02:51]} 11. exd4 {[%clk 0:02:41]}  Re8 {[%clk 0:02:50]} 12. O-O {[%clk 0:02:37]}  Nf8 {[%clk 0:02:49]} 13. Qc2 {[%clk 0:02:28]}  h6 {[%clk 0:02:48]} 14. Rad1 {[%clk 0:02:26]}  Bd7 {[%clk 0:02:44]} 15. Bf5 {[%clk 0:02:11]}  Ne6 {[%clk 0:02:35]} 16. Rfe1 {[%clk 0:02:09]}  Qc7 {[%clk 0:02:34]} 17. a4 {[%clk 0:01:55]}  Rad8 {[%clk 0:02:32]} 18. Ba1 {[%clk 0:01:50]}  Bb4 {[%clk 0:02:31]} 19. Rb1 {[%clk 0:01:42]}  a5 {[%clk 0:02:31]} 20. Red1 {[%clk 0:01:42]}  Nf4 {[%clk 0:02:24]} 21. Bxd7 {[%clk 0:01:39]}  Rxd7 {[%clk 0:02:23]} 22. Ng3 {[%clk 0:01:24]}  Rde7 {[%clk 0:01:55]} 23. Nf5 {[%clk 0:01:13]}  Ne2+ {[%clk 0:01:54]} 24. Kh1 {[%clk 0:00:55]}  Re6 {[%clk 0:01:49]} 25. Qd3 {[%clk 0:00:46]}  Nxc3 {[%clk 0:01:45]} 26. Bxc3 {[%clk 0:00:47]}  Bxc3 {[%clk 0:01:45]} 27. Qxc3 {[%clk 0:00:48]}  g6 {[%clk 0:01:41]} 28. Qg3 {[%clk 0:00:40]}  Qxg3 {[%clk 0:01:32]} 29. Nxg3 {[%clk 0:00:41]}  R8e7 {[%clk 0:01:31]} 30. Kg1 {[%clk 0:00:37]}  Kg7 {[%clk 0:01:29]} 31. Kf1 {[%clk 0:00:36]}  Ne4 {[%clk 0:01:28]} 32. Nxe4 {[%clk 0:00:32]}  Rxe4 {[%clk 0:01:29]} 33. Re1 {[%clk 0:00:21]}  Rxe1+ {[%clk 0:01:24]} 34. Rxe1 {[%clk 0:00:21]}  Rxe1+ {[%clk 0:01:24]} 35. Kxe1 {[%clk 0:00:22]}  f5 {[%clk 0:01:23]} 36. Kd2 {[%clk 0:00:20]}  Kf6 {[%clk 0:01:23]} 37. Kd3 {[%clk 0:00:19]}  Ke6 {[%clk 0:01:23]} 38. f4 {[%clk 0:00:17]}  Kd6 {[%clk 0:01:23]} 39. Kc3 {[%clk 0:00:16]}  Ke6 {[%clk 0:01:21]} 40. Kc2 {[%clk 0:00:16]}  Kd6 {[%clk 0:01:21]} 41. Kd3 {[%clk 0:00:17]}  Ke6 {[%clk 0:01:22]} 42. g3 {[%clk 0:00:17]}  Kd6 {[%clk 0:01:21]} 43. Kc3 {[%clk 0:00:18]}  Ke6 {[%clk 0:01:22]} 44. c5 {[%clk 0:00:16]}  Kd5 {[%clk 0:01:21]} 45. Kd3 {[%clk 0:00:16]}  Ke6 {[%clk 0:01:15]} 46. Kc4 {[%clk 0:00:16]}  Kf6 {[%clk 0:01:11]} 47. d5 {[%clk 0:00:15]}  h5 {[%clk 0:01:03]} 48. d6 {[%clk 0:00:12]}  Ke6 {[%clk 0:01:03]} 49. Kd4 {[%clk 0:00:12]}  Kf6 {[%clk 0:01:03]} 50. Kd3 {[%clk 0:00:09]}  Ke6 {[%clk 0:01:03]} 51. Kc4 {[%clk 0:00:10]}  Kf6 {[%clk 0:01:01]} 52. Kd4 {[%clk 0:00:10]}  Ke6 {[%clk 0:01:02]} 53. Ke3 {[%clk 0:00:09]}  Kf6 {[%clk 0:00:59]} 54. Kd3 {[%clk 0:00:09]}  Ke6 {[%clk 0:00:59]} 55. Kd4 {[%clk 0:00:10]}  Kf6 {[%clk 0:00:59]} 56. d7 {[%clk 0:00:04]}  Ke7 {[%clk 0:00:59]} 57. Ke5 {[%clk 0:00:04]}  Kxd7 {[%clk 0:00:59]} 58. Kf6 {[%clk 0:00:05]}  b6 {[%clk 0:00:57]} 59. cxb6 {[%clk 0:00:06]}  c5 {[%clk 0:00:57]} 60. Ke5 {[%clk 0:00:06]}  Kc6 {[%clk 0:00:57]} 61. h4 {[%clk 0:00:03]}  c4 {[%clk 0:00:54]} 62. Kd4 {[%clk 0:00:04]}  Kxb6 {[%clk 0:00:54]} 63. Kxc4 {[%clk 0:00:04]}  Kc6 {[%clk 0:00:54]} 64. Kd4 {[%clk 0:00:05]}  Kd6 {[%clk 0:00:55]} 65. Kc4 {[%clk 0:00:05]}  Kc6 {[%clk 0:00:55]} 66. Kd4 {[%clk 0:00:05]}  Kd6 {[%clk 0:00:55]} 67. Kc4 {[%clk 0:00:01]}  Kc6 {[%clk 0:00:55]} 1/2-1/2


[Site "https://www.chess.com"]